Cogmind - Beta 15 @@@ ROGUE MODE // 2025.08.26 @ 18:43:29 Player: McSaucyNugget Result: Self-destructed Performance ------------- Evolutions (6) 3000 Regions Visited (9) 1800 Robots Destroyed (169) 845 Value Destroyed (7672) 7672 Prototype IDs (17) 340 Alien Tech Used (0) 0 Bonus (4478) 4478 TOTAL SCORE: 18135 Bonus ------- High Alert Combat Kills 2372 Follower Combat Kills 1739 Network Hubs Disabled 200 Registered with UFD 300 Met Optimus in HQ 500 Built Enhanced Grunts 300 Met R17 at Cetus 500 Friendly Fire -1433 Cogmind --------- Core Integrity 933/1150 Matter 290/300 Energy 385/385 System Corruption 14% Temperature Cool (0) Movement Treading (240) Ox1 Location -4/Factory Parts ------- > --- POWER (2) -------- Neutrino Core Light Antimatter Reactor > --- PROPULSION (5) --- Centrium Heavy Treads (fused) Flexi-carbon Leg Flexi-carbon Leg Flexi-carbon Leg > --- UTILITY (9) ------ Advanced Cooling System Advanced Cooling System Large Storage Unit Advanced Signal Interpreter Advanced Targeting Computer Improved Transmission Jammer Centrium Medium Armor Plating Medium Regenerative Plating Hacking Suite > --- WEAPON (3) ------- Wave Gun Phase Gun KE Penetrator (fused) > --- INVENTORY (15) --- Micro Fission Core Light Antimatter Reactor Improved Treads Improved Coolant Injector Advanced Melee Analysis Suite Advanced Hacking Suite High-powered Shock Rifle Wave Gun Neutron Cannon Heavy Missile Launcher CPS Tube (1) Multitool Lance Peak State ------------ > --- POWER ------------ Particle Reactor Quantum Reactor > --- PROPULSION ------- Medium Treads Heavy Treads Centrium Heavy Treads > --- UTILITY ---------- Advanced Cooling System Large Storage Unit Advanced Sensor Array Advanced Signal Interpreter Advanced Targeting Computer Transmission Jammer Centrium Medium Armor Plating Medium Regenerative Plating Advanced Shield Generator > --- WEAPON ----------- Quantum Rifle Railgun Advanced KE Penetrator > --- INVENTORY -------- Centrium Heavy Treads Overtuned Huge Scrapsphere Advanced Cooling System Centrium Medium Armor Plating Advanced Hacking Suite Compact HERF Cannon Neutron Cannon KE Penetrator Advanced KE Penetrator Heavy Missile Launcher CPS Tube Multitool Lance [Rating: 129] Favorites ----------- Power Ion Engine Engine Ion Engine Power Core Neutrino Core Reactor Quantum Reactor Propulsion Light Treads Treads Light Treads Leg Flexi-carbon Leg Wheel Armored Huge Wheel Utility Large Storage Unit Device Seismic Detector Storage Large Storage Unit Processor Advanced Targeting Computer Hackware Hacking Suite Protection Centrium Medium Armor Plating Weapon KE Penetrator Energy Gun Gatling Laser Energy Cannon Heavy Particle Cannon Ballistic Gun KE Penetrator Ballistic Cannon Light Cannon Launcher Heavy Missile Launcher Special Weapon Multitool Slashing Weapon Phasing Sabre Piercing Weapon Lance Build | -11 -10 -10 -7 -5 -5 -5 -5 -5 -4 ------- Run | Yrd Mat Sub Scr Fac Ext Cet Arc Hub Fac Slots Evolved 12 | . . . . 10 . . . . 2 Power 1 | . . . . . . . . . 1 Propulsion 3 | . . . . 2 . . . . 1 Utility 7 | . . . . 7 . . . . . Weapon 1 | . . . . 1 . . . . . Parts Attached 100 | 6 5 7 4 19 20 13 4 2 20 Power 14 | 1 1 1 1 2 2 1 . . 5 Engine 4 | 1 1 1 1 . . . . . . Core 5 | . . . . 2 1 . . . 2 Reactor 5 | . . . . . 1 1 . . 3 Propulsion 23 | 2 1 3 1 1 4 2 2 1 6 Treads 13 | 2 1 3 . . 1 1 2 1 2 Leg 5 | . . . . . 1 1 . . 3 Wheel 5 | . . . 1 1 2 . . . 1 Hover . | . . . . . . . . . . Flight . | . . . . . . . . . . Utility 33 | 1 2 1 . 11 7 7 1 . 3 Device 17 | . . 1 . 6 4 3 1 . 2 Storage 4 | 1 2 . . . . 1 . . . Processor 3 | . . . . 3 . . . . . Hackware 2 | . . . . 1 . . . . 1 Protection 7 | . . . . 1 3 3 . . . Artifact . | . . . . . . . . . . Weapon 30 | 2 1 2 2 5 7 3 1 1 6 Energy Gun 11 | 1 1 . 1 2 1 . 1 . 4 Energy Cannon 3 | . . 1 1 . 1 . . . . Ballistic Gun 10 | 1 . . . 2 3 2 . 1 1 Ballistic Cannon 1 | . . 1 . . . . . . . Launcher 1 | . . . . . 1 . . . . Special Weapon 2 | . . . . 1 . 1 . . . Impact Weapon . | . . . . . . . . . . Slashing Weapon 1 | . . . . . 1 . . . . Piercing Weapon 1 | . . . . . . . . . 1 Special Melee Weapon . | . . . . . . . . . . Unidentified Prototypes 8 | . . . . 1 . 7 . . . Corrupted Parts 5 | . . . . . . 3 . . 2 System Corruption 18 | . . . . . . 11 . . 7 Parts Lost 24 | . 2 4 . . 3 . . . 15 Power 5 | . 1 1 . . . . . . 3 Propulsion 6 | . . 2 . . 1 . . . 3 Utility 6 | . . . . . 2 . . . 4 Weapon 7 | . 1 1 . . . . . . 5 Highest Loss Streak 7 | . 2 2 . . 1 . . . 7 To Critical Strikes . | . . . . . . . . . . Average Backups 13 | 2 9 13 14 14 14 14 13 13 12 Power . | . . . . 1 . 1 1 1 . Propulsion 2 | 1 5 5 4 1 . 1 1 2 1 Utility 3 | . 2 1 2 3 5 5 4 3 3 Weapon 4 | 1 1 4 4 6 5 4 4 5 5 Tool/Special . | . . . . . . . . . . Unused Backups 52 | . 8 2 12 11 4 3 5 1 6 Power 5 | . . . . 2 . . 2 . 1 Propulsion 18 | . 6 1 4 4 . 2 . . 1 Utility 14 | . 2 1 2 1 . 1 3 1 3 Weapon 15 | . . . 6 4 4 . . . 1 Tool/Special . | . . . . . . . . . . Average Slot Usage (%) 88 | . 85 99 93 74 83 94 93 90 85 Engine 6 | . 14 14 14 1 . . . . . Core 1 | . . . . 3 3 . . . 2 Reactor 1 | . . . . . 2 5 5 5 7 Treads 13 | . 28 28 16 . 1 5 15 13 10 Wheel 4 | . . . 5 11 10 11 1 . . Device 14 | . . 13 14 18 18 17 22 23 16 Storage 9 | . 14 14 14 5 5 5 5 5 5 Processor 5 | . . . . 9 11 11 11 11 10 Protection 4 | . . . . 3 8 16 11 11 9 Energy Gun 5 | . 14 2 10 1 1 4 5 5 5 Energy Cannon 3 | . . 2 14 . . 1 . . . Ballistic Gun 9 | . 14 11 . 15 13 9 11 10 7 Ballistic Cannon 2 | . . 11 3 . . . . . . Peak Build Rating 129 | 6 8 10 27 92 94 109 114 118 129 Average Rating 58 | 4 6 9 18 82 86 98 112 115 115 On Entrance 56 | . 6 8 10 27 91 83 107 114 117 Naked Turns . | . . . . . . . . . . Heaviest Build 100 | 13 36 32 36 77 87 87 82 83 100 Greatest Support 178 | 40 40 40 40 48 52 80 136 150 178 Greatest Overweight (x) 28 | . . . 1 1 28 2 2 . 3 Average Overweight (x) . | . . . . . 1 1 . . . Largest Inventory Capacity 15 | 8 15 15 15 15 15 15 15 15 15 Average Capacity 14 | 6 11 15 15 15 15 15 15 15 15 Most Carried 15 | 5 15 15 15 15 15 15 15 15 15 Average Carried 13 | 3 9 13 14 14 14 14 14 14 13 Final Capacity 15 | 8 15 15 15 15 15 15 15 15 15 Final Carried 15 | 4 15 13 15 15 15 15 15 15 13 Class Distribution -------------------- 46% | Mutant 26% | Scavenger-Tank 20% | Scrapper 3% | Scavenger-Mutant Dominant Class ---------------- Mutant | -10/Materials Mutant | -10/Subcaves Mutant | -7/Scraptown Scrapper | -5/Factory Scrapper | -5/Extension Scavenger-Tank | -5/Cetus Scavenger-Tank | -5/Archives Scavenger-Tank | -5/Hub_04(d) Scavenger-Tank | -4/Factory Resources | -11 -10 -10 -7 -5 -5 -5 -5 -5 -4 ----------- Run | Yrd Mat Sub Scr Fac Ext Cet Arc Hub Fac Matter Collected 4601 | 244 99 77 93 642 1760 311 402 156 817 Remotely . | . . . . . . . . . . Salvage Created 9282 | 14 614 204 . 1307 3132 500 329 509 2673 Parts 429 | 4 43 10 . 61 146 24 17 20 104 Haulers Intercepted 3 | . 1 . . . . . . 2 . Recyclers Shooed 5 | . 2 . . 1 1 . . . 1 Parts Field Recycled . | . . . . . . . . . . Retrieved Matter . | . . . . . . . . . . Parts Self-Destructed . | . . . . . . . . . . Prevented . | . . . . . . . . . . Kills | -11 -10 -10 -7 -5 -5 -5 -5 -5 -4 ------- Run | Yrd Mat Sub Scr Fac Ext Cet Arc Hub Fac Combat Hostiles Destroyed 119 | . 15 6 . 13 44 6 . 4 31 Melee 1 | . . . . . . . . . 1 Guns 86 | . 15 2 . 12 30 3 . 3 21 Cannons 8 | . . 3 . . 2 . . . 3 AOE 11 | . . 1 . 1 9 . . . . Classes Destroyed 17 | 1 4 2 . 5 4 . . . 1 Worker 6 | . . . . 1 4 . . . 1 Builder 10 | . . . . 4 1 . . 3 2 Tunneler 2 | 1 . . . 1 . . . . . Hauler 3 | . 1 . . . . . . 2 . Recycler 10 | . . . . 4 4 . . . 2 Operator 12 | . 2 . . . 1 . 9 . . Watcher 6 | . . . . 1 2 2 . . 1 Swarmer 21 | . 6 . . 4 9 . . . 2 Grunt 43 | . 9 1 . 2 16 . . 1 14 Brawler 2 | . . . . . 2 . . . . Duelist 2 | . . . . . . . . . 2 Protector 1 | . . . . . 1 . . . . Sentry 21 | . . 1 . 4 10 . . 1 5 Specialist 2 | . . . . . 2 . . . . Hunter 6 | . . . . . 2 . . 1 3 Programmer 9 | . . . . 3 . . . 1 5 Cetus Guard 6 | . . . . . . 6 . . . Subdweller 4 | . . 4 . . . . . . . Thug 2 | . . . . . 2 . . . . Best Kill Streak 9 | 1 5 2 . 4 8 5 9 5 6 Combat Bots Only 7 | . 5 2 . 4 7 4 . 1 5 Max Kills in Single Turn 5 | 1 2 1 . 3 4 2 2 5 2 Gunslinging 1 | . . . . 1 . . . . . Exploded 3 | . . 1 . 1 3 . . . . Melee 1 | . . . . . . . . . 1 Uniques/NPCs Destroyed 1 | . . . . . . 1 . . . A7 (-5/Cetus) Combat | -11 -10 -10 -7 -5 -5 -5 -5 -5 -4 -------- Run | Yrd Mat Sub Scr Fac Ext Cet Arc Hub Fac Hostile Shots Fired 671 | . 70 39 . 48 167 28 12 46 261 Missed 188 | . 19 7 . 14 51 10 3 12 72 Hits 483 | . 51 32 . 34 116 18 9 34 189 Melee 9 | . . . . . 1 . . . 8 Projectile 474 | . 51 32 . 34 115 18 9 34 181 AOE 3 | . . . . . 3 . . . . Critical Strikes 29 | . 1 1 . 2 6 4 . 3 12 Part Disruptions 2 | . . . . . 1 . . . 1 Damage Taken 9359 | . 522 658 . 625 2063 388 177 796 4130 Core 821 | . 88 129 . 35 187 52 20 93 217 Absorbed by Shields 748 | . . . . 36 348 126 64 36 138 Reduced by Siege Mode 5 | . . . . . . . . 5 . Regen/Repaired (Parts) 908 | . . . . 3 61 21 135 141 547 Core Remaining (%) 58 | 100 . . 13 . . . . 61 . Volleys Fired 457 | 1 50 23 . 58 127 31 31 33 103 Largest 3 | 2 2 2 . 3 3 3 3 3 3 Hottest 202 | 60 60 90 . 152 153 151 151 164 202 Shots Fired 1033 | 2 98 46 . 149 310 56 89 63 220 Gun 926 | 2 98 23 . 149 277 41 89 60 187 Cannon 101 | . . 23 . . 28 14 . 3 33 Launcher 5 | . . . . . 5 . . . . Special 1 | . . . . . . 1 . . . Kinetic 684 | 1 50 32 . 139 249 27 59 34 93 Thermal 208 | . . 7 . 10 28 14 30 26 93 Explosive 5 | . . . . . 5 . . . . Electromagnetic 135 | 1 48 7 . . 28 14 . 3 34 Robot Hit Streak 37 | 1 6 32 . 9 15 12 8 9 37 Robot Miss Streak 4 | . 3 1 . 4 4 3 4 3 3 Penetration Max 2 | . . . . 1 2 1 1 1 1 Secondary Targets 17 | . 2 . . 3 5 1 . . 6 Max Gunslinging Chain 1 | . 1 . . 1 1 1 . . 1 Shots Hit Robots 658 | 1 59 38 . 71 197 33 57 31 171 Core Hits 333 | 1 31 12 . 38 115 13 26 16 81 Critical Kills 22 | . . . . 8 10 1 1 1 1 Critical Parts Destroyed 28 | . . . . 1 14 1 2 1 9 Critical Strikes 59 | . 1 . . 10 25 3 5 2 13 Burn 5 | . . . . 1 . . 2 . 2 Destroy 52 | . . . . 9 25 3 3 2 10 Corrupt 2 | . 1 . . . . . . . 1 Melee Attacks 12 | . . . . . 1 . . . 11 Impact . | . . . . . . . . . . Slashing 1 | . . . . . 1 . . . . Piercing 11 | . . . . . . . . . 11 Sneak Attacks . | . . . . . . . . . . Combat Hostiles . | . . . . . . . . . . Follow-up Attacks . | . . . . . . . . . . Damage Inflicted 20854 | 16 683 596 . 2597 7845 998 1536 1478 5105 Guns 15412 | 13 683 183 . 2199 5477 616 1536 858 3847 Cannons 2877 | . . 327 . . 876 382 . 137 1155 Explosions 2459 | . . 86 . 398 1492 . . 483 . Melee 103 | . . . . . . . . . 103 Ramming 3 | 3 . . . . . . . . . Kinetic 11597 | . 229 343 . 2065 5083 398 933 554 1992 Thermal 3901 | . . 174 . 379 394 218 603 304 1829 Explosive 1645 | . . . . 153 1492 . . . . Electromagnetic 3605 | 13 454 79 . . 876 382 . 620 1181 Impact . | . . . . . . . . . . Slashing . | . . . . . . . . . . Piercing 103 | . . . . . . . . . 103 Highest Corruption 25 | . . . . 4 14 25 25 23 14 Average Corruption 12 | . . . . 3 5 23 23 20 10 Corruption Purged 6 | . . . . . . . 6 . . Corruption Blocked . | . . . . . . . . . . Effects 168 | . . . . 12 40 30 25 32 29 Message Errors 38 | . . . . 3 12 7 5 5 6 Matter Fused 26 | . . . . . 5 8 4 6 3 Heat Flow Errors 13 | . . . . 2 3 2 . 5 1 Energy Discharges 25 | . . . . 1 10 4 4 2 4 Parts Rejected 2 | . . . . . 1 . . . 1 Parts Fused 3 | . . . . . . . . 1 2 Data Loss (minor) 14 | . . . . 2 3 4 . 3 2 Data Loss (major) 9 | . . . . 1 2 . 1 2 3 Misfires 12 | . . . . 2 2 1 3 1 3 Alerts 5 | . . . . 1 1 . 2 1 . Misdirections 2 | . . . . . . . . 2 . Weapon Failures 19 | . . . . . 1 4 6 4 4 Overload Shots . | . . . . . . . . . . Overflow Damage 130 | . . . . 79 14 . . 37 . Projectiles 7 | . . . . . . . . 7 . Explosions 123 | . . . . 79 14 . . 30 . Melee . | . . . . . . . . . . Knockbacks 8 | . . 8 . . . . . . . Impact . | . . . . . . . . . . Kinetic 8 | . . 8 . . . . . . . Secondary . | . . . . . . . . . . Self-Inflicted Damage 108 | . . 4 . . . . . 104 . Shots 2 | . . 1 . . . . . 1 . Rammed 2 | 1 1 . . . . . . . . Targets Rammed 2 | 1 1 . . . . . . . . Kicked . | . . . . . . . . . . Crushed . | . . . . . . . . . . Highest Temperature 463 | 20 180 274 . 187 419 463 . 225 329 Average Temperature 92 | 15 44 162 . 22 95 174 . 86 85 Received Heat Transfer 2121 | . 234 439 . 76 522 . 24 104 722 Effects 9 | . . . . . 4 5 . . . Shutdowns 2 | . . . . . 1 1 . . . Energy Bleed 2 | . . . . . . 2 . . . Interference 2 | . . . . . . 2 . . . Short Circuit 1 | . . . . . 1 . . . . Damage (major) 2 | . . . . . 2 . . . . Siege Activations 1 | . . . . . . . . 1 . Total Turns 8 | . . . . . . . . 8 . Longest Duration 8 | . . . . . . . . 8 . Martial Activations . | . . . . . . . . . . Shielding Activations . | . . . . . . . . . . Robots Disrupted 1 | . . . . . . 1 . . . Combat Hostiles 1 | . . . . . . 1 . . . Robots Corrupted 13 | . . . . . 3 3 . 1 6 Combat Hostiles 13 | . . . . . 3 3 . 1 6 Parts Fried 29 | . 1 1 . . 5 5 . 2 15 Impact Corruptions . | . . . . . . . . . . Robots Melted . | . . . . . . . . . . Combat Hostiles . | . . . . . . . . . . Parts Melted 17 | . . 1 . . 1 . 5 . 10 Heat Transferred 5914 | . . 285 . 523 592 333 1073 370 2738 Parts Sabotaged . | . . . . . . . . . . Parts Stolen . | . . . . . . . . . . Parts Stripped . | . . . . . . . . . . Power Chain Reactions 1 | . . 1 . . . . . . . Alert | -11 -10 -10 -7 -5 -5 -5 -5 -5 -4 ------- Run | Yrd Mat Sub Scr Fac Ext Cet Arc Hub Fac Maximum Alert Level 5 | . . . . 2 5 4 2 3 3 Low Security (%) 24 | 100 100 . . 29 . . . 7 . Level 1 10 | . . . . 24 16 . . 6 7 Level 2 39 | . . . . 45 31 . 100 67 65 Level 3 9 | . . . . . 11 15 . 18 27 Level 4 9 | . . . . . 13 84 . . . Level 5 5 | . . . . . 27 . . . . High Security . | . . . . . . . . . . Max Security . | . . . . . . . . . . Peak Influence 1993 | 5 110 . . 578 1993 1197 673 800 1051 Initial 1113 | . . . . . 262 1113 452 200 385 Average 574 | . 39 . . 352 1016 1138 606 497 663 Influence Increases 6946 | 5 508 40 . 1050 2499 324 300 900 1320 Destroy 0b10 Robot/C 3080 | . 300 40 . 260 1260 160 80 240 740 Destroy 0b10 Robot/NC 300 | 5 15 . . 55 95 10 45 35 40 Destroy Leader 508 | . 72 . . 82 136 . . 66 152 Allied During Kill 1091 | . . . . . 663 103 100 168 57 Successful Hack 76 | . 16 . . 6 38 . . 16 . Select Force Hacks 60 | . 60 . . . . . . . . Disable Machine 525 | . . . . 255 15 15 45 60 135 Destroy Structure 1096 | . . . . 332 232 36 30 300 166 Lose Combat Pursuer 210 | . 45 . . 60 60 . . 15 30 Influence Decreases 5925 | 5 417 131 . 514 1046 1182 859 686 1085 Entered New Map 2646 | . . 44 . . 274 876 679 372 401 Time Decay 2659 | 5 397 87 . 514 502 246 180 254 474 Lost Part 200 | . 20 . . . 30 . . . 150 Lost Ally 420 | . . . . . 240 60 . 60 60 Squads Dispatched 34 | . 5 . . 7 9 . . 3 10 Investigation 7 | . 3 . . . 1 . . . 3 Extermination 4 | . . . . 1 . . . 1 2 Reinforcement 12 | . 2 . . 3 4 . . 2 1 Assault 5 | . . . . . 4 . . . 1 Garrison 6 | . . . . 3 . . . . 3 Intercept . | . . . . . . . . . . Searches Triggered . | . . . . . . . . . . Construction Impeded 3 | . . . . . 2 . . . 1 Haulers Reinforced . | . . . . . . . . . . Active Scanning Responses . | . . . . . . . . . . Cargo Convoy Interrupts 1 | . . . . . . . . . 1 Stealth | -11 -10 -10 -7 -5 -5 -5 -5 -5 -4 --------- Run | Yrd Mat Sub Scr Fac Ext Cet Arc Hub Fac Distress Signals 15 | . 2 . . 2 4 2 . 2 3 Communications Jammed 24 | . . . . . . . . . 24 Distress Signals 22 | . . . . . . . . . 22 Times Spotted 219 | . 24 6 . 20 71 10 25 13 50 Peak Tracking Total 10 | . 6 2 . 5 10 5 2 5 9 Tactical Retreats 13 | . 3 . . 4 3 . . 1 2 Traps | -11 -10 -10 -7 -5 -5 -5 -5 -5 -4 ------- Run | Yrd Mat Sub Scr Fac Ext Cet Arc Hub Fac Traps Triggered 12 | . 1 . . 4 3 . . 2 2 Indirectly . | . . . . . . . . . . Trap Hack Attempts . | . . . . . . . . . . Triggered . | . . . . . . . . . . Disarmed . | . . . . . . . . . . Reprogrammed . | . . . . . . . . . . Reused . | . . . . . . . . . . Traps Extracted . | . . . . . . . . . . Installed . | . . . . . . . . . . Triggered . | . . . . . . . . . . Machines | -11 -10 -10 -7 -5 -5 -5 -5 -5 -4 ---------- Run | Yrd Mat Sub Scr Fac Ext Cet Arc Hub Fac Machines Disabled 41 | . . . . 17 5 3 3 4 9 Max in Single Turn 2 | . . . . 2 1 2 1 1 1 Garrison Access 2 | . . . . 1 . . . . 1 Network Hub 1 | . . . . . . . . 1 . Energy Cycler 1 | . . . . . 1 . . . . Machines Repaired . | . . . . . . . . . . Machines Dismantled . | . . . . . . . . . . Machines Sabotaged . | . . . . . . . . . . Overloaded Fab Kills . | . . . . . . . . . . Hacking | -11 -10 -10 -7 -5 -5 -5 -5 -5 -4 --------- Run | Yrd Mat Sub Scr Fac Ext Cet Arc Hub Fac Machines Accessed 35 | . 7 . 2 8 9 1 . 2 6 Terminals 22 | . 5 . . 4 9 1 . 2 1 Fabricators 2 | . . . . 1 . . . . 1 Repair Stations 1 | . . . . . . . . . 1 Recycling Units 5 | . 2 . . 1 . . . . 2 Scanalyzers . | . . . . . . . . . . Garrison Access 3 | . . . . 2 . . . . 1 Total Hacks 68 | . 19 . 5 14 18 1 . 3 8 Successful 31 | . 11 . 5 4 4 . . 2 5 Failed 37 | . 8 . . 10 14 1 . 1 3 Catastrophic 11 | . 1 . . 3 4 1 . 1 1 Database Lockouts . | . . . . . . . . . . Manual 35 | . 18 . . 4 7 1 . 1 4 Terminals 46 | . 17 . . 6 18 1 . 3 1 Fabricators 5 | . . . . 3 . . . . 2 Repair Stations 1 | . . . . . . . . . 1 Recycling Units 6 | . 2 . . 2 . . . . 2 Scanalyzers . | . . . . . . . . . . Garrison Access 5 | . . . . 3 . . . . 2 Terminal Hacks 12 | . 1 . 5 2 3 . . 1 . Record 4 | . . . 4 . . . . . . Prototype ID Bank 1 | . 1 . . . . . . . . Open Door 3 | . . . . 1 2 . . . . Branch Access Points 1 | . . . . 1 . . . . . Alert Level 1 | . . . . . . . . 1 . Locate Traps 1 | . . . . . 1 . . . . Proto ID Catalog 1 | . . . 1 . . . . . . Fabricator Hacks 2 | . . . . 1 . . . . 1 Network Status 1 | . . . . . . . . . 1 Build 1 | . . . . 1 . . . . . Repair Station Hacks . | . . . . . . . . . . Recycling Unit Hacks . | . . . . . . . . . . Scanalyzer . | . . . . . . . . . . Garrison Access Hacks 2 | . . . . 1 . . . . 1 Seal Access 2 | . . . . 1 . . . . 1 Unauthorized Hacks 14 | . 9 . . . 1 . . 1 3 Terminals 9 | . 7 . . . 1 . . 1 . Botnet 4 | . 2 . . . 1 . . 1 . Skim 5 | . 5 . . . . . . . . Fabricators . | . . . . . . . . . . Repair Stations 1 | . . . . . . . . . 1 Patch 1 | . . . . . . . . . 1 Recycling Units 4 | . 2 . . . . . . . 2 Tunnel 2 | . 2 . . . . . . . . Scrapoids 2 | . . . . . . . . . 2 Scanalyzers . | . . . . . . . . . . Garrison Access . | . . . . . . . . . . Data Cores Recovered . | . . . . . . . . . . Used . | . . . . . . . . . . Hacking Detections 19 | . 4 . . 5 6 1 . 2 1 Full Trace Events 1 | . . . . . 1 . . . . Feedback Events . | . . . . . . . . . . Feedback Blocked . | . . . . . . . . . . Robot Schematics Acquired . | . . . . . . . . . . Robots Built . | . . . . . . . . . . Authchips . | . . . . . . . . . . Time . | . . . . . . . . . . Total Robot Build Rating . | . . . . . . . . . . Part Schematics Acquired . | . . . . . . . . . . Parts Built 1 | . . . . 1 . . . . . Authchips . | . . . . . . . . . . Time 64 | . . . . 64 . . . . . Total Part Build Rating 8 | . . . . 8 . . . . . Parts Repaired . | . . . . . . . . . . Time . | . . . . . . . . . . Parts Recycled . | . . . . . . . . . . Recycled Matter . | . . . . . . . . . . Retrieved Matter . | . . . . . . . . . . Retrieved Components . | . . . . . . . . . . Parts Scanalyzed . | . . . . . . . . . . Part Schematics Acquired . | . . . . . . . . . . Parts Damaged . | . . . . . . . . . . Bothacking | -11 -10 -10 -7 -5 -5 -5 -5 -5 -4 ------------ Run | Yrd Mat Sub Scr Fac Ext Cet Arc Hub Fac Used RIF Installer . | . . . . . . . . . . Robots Hacked . | . . . . . . . . . . Non-combat . | . . . . . . . . . . Combat . | . . . . . . . . . . Robot Hacks Applied . | . . . . . . . . . . Relay Couplers Released 4 | . . . . . . . . . 4 Programmers 4 | . . . . . . . . . 4 Fabnet Peak Effective % . | . . . . . . . . . . Robots Rewired 13 | . . . . . 13 . . . . Allies Hacked . | . . . . . . . . . . Hacks Repelled . | . . . . . . . . . . Allies | -11 -10 -10 -7 -5 -5 -5 -5 -5 -4 -------- Run | Yrd Mat Sub Scr Fac Ext Cet Arc Hub Fac Total Allies 32 | . . . . . 17 5 . . 10 Largest Group 13 | . . . . . 13 7 4 4 5 Highest-Rated Group 662 | . . . . . 508 662 327 322 235 Highest-Rated Ally 159 | . . . . . 159 159 96 96 47 Total Orders 5 | . . . . . 1 . 2 . 2 STAY 2 | . . . . . . . 1 . 1 FOLLOW 3 | . . . . . 1 . 1 . 1 Ally Attacks 350 | . . . . . 188 42 18 52 50 Total Damage 9072 | . . . . . 3761 1446 564 1652 1649 Kills 54 | . . . . . 27 2 4 10 11 Allies Corrupted 3 | . . . . . 1 . . . 2 Allies Melted . | . . . . . . . . . . Intel | -11 -10 -10 -7 -5 -5 -5 -5 -5 -4 ------- Run | Yrd Mat Sub Scr Fac Ext Cet Arc Hub Fac Active Infowar (turns) 7473 | . . 1295 2204 1477 535 33 373 550 1006 Sensors 2650 | . . . . 1207 371 33 373 550 116 Terrain 227 | . . . . 227 . . . . . Seismic 4062 | . . 1295 2204 563 . . . . . Jamming 1655 | . . . . . 164 . 79 406 1006 Robot Analysis Total . | . . . . . . . . . . Derelict Logs Recovered 1 | . . . 1 . . . . . . Drone Launches . | . . . . . . . . . . Drone Recoveries . | . . . . . . . . . . Exploration | -11 -10 -10 -7 -5 -5 -5 -5 -5 -4 ------------- Run | Yrd Mat Sub Scr Fac Ext Cet Arc Hub Fac Turns Passed 10216 | 105 1066 1341 2204 1505 1342 525 373 550 1205 Spaces Moved 5821 | 58 502 768 1580 1130 735 190 157 265 436 Core 6 | 5 . . . . 1 . . . . Treads 2948 | 53 502 768 794 . . 14 141 265 411 Legs 5 | . . . . . . 1 . . 4 Wheels 2862 | . . . 786 1130 734 175 16 . 21 Hover . | . . . . . . . . . . Flight . | . . . . . . . . . . Fastest Speed 50 | 50 160 160 115 85 97 130 130 160 90 Average Speed 133 | 150 160 160 137 93 110 136 156 160 160 Slowest Speed 1450 | 160 160 160 160 97 1450 260 160 160 240 Overloaded Moves . | . . . . . . . . . . Propulsion Burnouts . | . . . . . . . . . . Robots Hopped . | . . . . . . . . . . Potential Cave-ins 9 | . . . . 9 . . . . . Cave-ins Triggered . | . . . . . . . . . . Exploration Rate (%) 54 | 6 88 55 90 30 84 62 85 32 13 Regions Visited 9 Branch Regions 6 Pre-discovered Areas 3 | . 3 . . . . . . . . Known Exits Taken 4 | . . . . 1 1 . 1 1 . Unknown Exits Taken 5 | 1 1 1 1 . . 1 . . . Scrap Searched 8 | . . . 8 . . . . . . Spaces Dug 243 | . . . . 35 1 . . 201 6 Terrain Destroyed 639 | . . . . 189 178 12 23 216 21 Melee 7 | . . . . . 1 . . . 6 Projectile 290 | . . . . 112 104 12 23 24 15 AOE 342 | . . . . 77 73 . . 192 . Terrain Rammed . | . . . . . . . . . . Walls Destroyed . | . . . . . . . . . . Machines Disabled . | . . . . . . . . . . Actions | -11 -10 -10 -7 -5 -5 -5 -5 -5 -4 --------- Run | Yrd Mat Sub Scr Fac Ext Cet Arc Hub Fac Total 7578 | 71 685 841 1618 1518 1130 412 222 335 746 Wait 791 | . 90 34 . 232 104 147 14 25 145 Move 5813 | 58 501 767 1579 1129 734 189 156 264 436 Hop . | . . . . . . . . . . Pick Up 106 | 6 23 6 15 22 12 3 6 2 11 Fast Attach 50 | 4 2 . 2 8 9 11 4 2 8 Attach 33 | 2 2 5 . 6 5 . . . 13 Detach 10 | . 2 . . 4 2 . . . 2 Swap 68 | . 1 2 2 7 24 11 2 4 15 Drop 110 | . 13 4 20 22 16 20 9 4 2 Fire 457 | 1 50 23 . 58 127 31 31 33 103 Melee 12 | . . . . . 1 . . . 11 Ram . | . . . . . . . . . . Kick . | . . . . . . . . . . Crush 1 | . 1 . . . . . . . . Escape Stasis 35 | . . . . 29 6 . . . . Rewire 89 | . . . . . 89 . . . . Trap . | . . . . . . . . . . Miscellaneous 3 | . . . . 1 1 . . 1 . Route ------- -11/Scrapyard -10/Materials (discovered 5 exits: *Mat x3 / [*Min] / [*Sub]) -10/Subcaves (discovered 3 exits: *Mat x2 / *Scr) -7/Scraptown (discovered 2 exits: *Fac x2) -5/Factory (discovered 6 exits: *Fac x2 / *Upp x2 / *Ext x2) -5/Extension (discovered 2 exits: *Fac / *Cet) -5/Cetus (discovered 2 exits: *Fac / [*Arc]) -5/Archives (discovered 2 exits: *Hub x2) -5/Hub_04(d) -4/Factory History --------- Turn | Location | Event 15 | -11/Scrapyard | Discovered new exit (range 15) 106 | -11/Scrapyard | Entered Materials 313 | -10/Materials | Discovered new exit (range 8) 322 | -10/Materials | Build established: Mutant 559 | -10/Materials | Discovered new exit (range 8) 933 | -10/Materials | Discovered new exit (range 16) 1050 | -10/Materials | Identified exit to Materials 1067 | -10/Materials | Discovered new exit (range 8) 1084 | -10/Materials | Learned Storage machine intel 1123 | -10/Materials | Learned Storage trap positions 1127 | -10/Materials | Learned location of Recycling (-7) 1148 | -10/Materials | Loaded intel: 13 trap records 1172 | -10/Materials | Entered Subcaves 1173 | -10/Subcaves | Approached by a straggling Scientist 1173 | -10/Subcaves | Identified exit to Materials 1410 | -10/Subcaves | Core integrity fell below 50% 1875 | -10/Subcaves | Scientist uncovered a shortcut to Scraptown 2220 | -10/Subcaves | Shifting Twisted Machinery released Spk. Treads 2234 | -10/Subcaves | Shifting Twisted Machinery released Sub. Optics 2315 | -10/Subcaves | Core integrity fell below 20% 2513 | -10/Subcaves | Entered Scraptown 2778 | -7/Scraptown | Visited Symbiants 2848 | -7/Scraptown | Visited Red Mages 3237 | -7/Scraptown | Visited Assassins FH 3261 | -7/Scraptown | Visited TADAMA 3269 | -7/Scraptown | Heard Great Nut preacher, LISTEN AND RECITE! 3328 | -7/Scraptown | Visited Artisan Demo Area 3347 | -7/Scraptown | Visited CPS Storage 3426 | -7/Scraptown | Visited Cave Peace 3488 | -7/Scraptown | Scanned Subdweller tech in exchange for log data 3493 | -7/Scraptown | Learned location of 2 exits from Lower Caves 3517 | -7/Scraptown | Discovered new exit (range 7) 3680 | -7/Scraptown | Visited UFD Registry 3680 | -7/Scraptown | Registered with UFD as "Bladecutter" 3733 | -7/Scraptown | Visited Modified Component R&D 3765 | -7/Scraptown | Visited DA-N13 Charitable Foundation 3779 | -7/Scraptown | Found DCF Scrap (28 items) 3832 | -7/Scraptown | Visited Scrapoid Research Area 3854 | -7/Scraptown | Visited Cartography Club 3896 | -7/Scraptown | Visited Junk Repository 3924 | -7/Scraptown | Visited Scrap Suit Storage 3941 | -7/Scraptown | Visited Botcube Research 4071 | -7/Scraptown | Visited Science Guys 4088 | -7/Scraptown | Visited Supply Room 4242 | -7/Scraptown | Discovered new exit (range 5) 4578 | -7/Scraptown | Found Scrap Suit 4645 | -7/Scraptown | Met Optimus 4645 | -7/Scraptown | Accepted into 0bPrime 4717 | -7/Scraptown | Entered Factory 4717 | -5/Factory | Evolved 10 slots: Propulsion x2, Utility x7, Weapon x1 4958 | -5/Factory | Garrison activated, responded to threat 5027 | -5/Factory | Build established: Scrapper 5360 | -5/Factory | Discovered new exit (range 15) 5378 | -5/Factory | Identified exit to Factory 5619 | -5/Factory | Discovered exit to Factory (range 7) 5990 | -5/Factory | Identified exit to Upper Caves 5990 | -5/Factory | Identified exit to Extension 6129 | -5/Factory | Fabricated Com. HERF Cannon (x1) 6222 | -5/Factory | Entered Extension 6522 | -5/Extension | First assault squad dispatched 6662 | -5/Extension | Destroyed 7 combat bots 6697 | -5/Extension | Disrupted transfer network 6964 | -5/Extension | Spotted B-75 Beast 6975 | -5/Extension | Allies destroyed B-75 Beast 6991 | -5/Extension | Spotted B-75 Beast 7002 | -5/Extension | Allies destroyed B-75 Beast 7132 | -5/Extension | Rescued A7 7158 | -5/Extension | Rescued a captive Derelict 7173 | -5/Extension | Energy Cycler disabled 7173 | -5/Extension | Rescued a captive Derelict 7174 | -5/Extension | Rescued a captive Derelict 7178 | -5/Extension | Rescued a captive Derelict 7180 | -5/Extension | Rescued a captive Derelict 7456 | -5/Extension | System corruption reached 10% 7466 | -5/Extension | Build established: Scavenger-Tank 7500 | -5/Extension | Lost 10 allies 7555 | -5/Extension | Discovered exit to Factory (range 10) 7556 | -5/Extension | Discovered new exit (range 6) 7563 | -5/Extension | Identified exit to Cetus 7564 | -5/Extension | Entered Cetus 7564 | -5/Cetus | Accompanied by 3 allies (A7) 7569 | -5/Cetus | Acquired a Cetus Manufacturing Module code from A7 7584 | -5/Cetus | Spotted Cetus Guard 7584 | -5/Cetus | Spotted Cetus Guard 7587 | -5/Cetus | Spotted Cetus Guard 7587 | -5/Cetus | Spotted Cetus Guard 7589 | -5/Cetus | Destroyed Cetus Guard 7593 | -5/Cetus | Allies destroyed Cetus Guard 7603 | -5/Cetus | Destroyed Cetus Guard 7606 | -5/Cetus | Allies destroyed Cetus Guard 7706 | -5/Cetus | Started Cetus Manufacturing Module 7726 | -5/Cetus | Discovered new exit (range 15) 7731 | -5/Cetus | Manufactured an Enhanced Grunt 7756 | -5/Cetus | Manufactured an Enhanced Grunt 7781 | -5/Cetus | Manufactured an Enhanced Grunt 7806 | -5/Cetus | Manufactured an Enhanced Grunt 7831 | -5/Cetus | Manufactured an Enhanced Grunt 7879 | -5/Cetus | Spotted Cetus Guard 7880 | -5/Cetus | Spotted Cetus Guard 7885 | -5/Cetus | Spotted Cetus Guard 7885 | -5/Cetus | Spotted Cetus Guard 7895 | -5/Cetus | Destroyed Cetus Guard 7904 | -5/Cetus | Destroyed Cetus Guard 7907 | -5/Cetus | Destroyed Cetus Guard 7913 | -5/Cetus | Destroyed Cetus Guard 7934 | -5/Cetus | Discovered exit to Factory (range 16) 7940 | -5/Cetus | Met Revision 17 8042 | -5/Cetus | Murdered A7 8047 | -5/Cetus | Found Prototype Protection 8047 | -5/Cetus | Identified Med. Regenerative Plating 8058 | -5/Cetus | Extracted ID and sensor layout for unrecognized location from A7's data core 8089 | -5/Cetus | Entered Archives 8089 | -5/Archives | Accompanied by 4 allies 8159 | -5/Archives | Discovered new exit (range 16) 8335 | -5/Archives | Discovered new exit (range 13) 8461 | -5/Archives | Identified exit to Hub_04(d) 8462 | -5/Archives | Entered Hub_04(d) 8462 | -5/Hub_04(d) | Accompanied by 4 allies 8909 | -5/Hub_04(d) | Network Hub disabled 8995 | -5/Hub_04(d) | Discovered exit to Factory (range 11) 9012 | -5/Hub_04(d) | Entered Factory 9012 | -4/Factory | Evolved 2 slots: Power x1, Propulsion x1 9086 | -4/Factory | Scrapoids reinforcements arrived? 9146 | -4/Factory | Lost 5 allies 9262 | -4/Factory | First assault squad dispatched 9635 | -4/Factory | Lost 7 parts (2p2n3w) 9636 | -4/Factory | System corruption reached 10% 10101 | -4/Factory | Scrapoid reinforcements arrived 10214 | -4/Factory | Cargo convoy interrupted 10215 | -4/Factory | Spotted Executioner 10217 | -4/Factory | Self-destructed Last Messages --------------- 10209_ U-05 Engineer lays Concrete. 10214_ ALERT: Cargo convoy interrupted, initiating access lockdown. 10214_ K-01 Serf collects debris. 10216_ Slug penetrates Nuclear Reactor. 10216_ Nuclear Reactor explodes. 10216_ M-28 Smith destroyed. 10216_ H-77 Assassin destroyed. 10216_ T-07 Excavator destroyed. 10216_ I-47 Archangel distress signal jammed. 10216_ Slug penetrates Wall. 10216_ Penetrated by Slug. 10216_ C-30 ARC bursts open, deploying its payload. 10216_ P-70 Sage unfolds itself. 10216_ X-72 Disruptor unfolds itself. 10216_ H-77 Assassin unfolds itself. 10216_ E-15 Imp unfolds itself. 10216_ Slug penetrates 04F07-D. 10217_ Slug penetrates Executioner. 10217_ I-47 Archangel distress signal jammed. 10217_ U-05 Engineer builds a Wall. Map ----- +----------------------------------------------------+ | ??????# #??????????????????????????????????? | | ???#### ######/#???????????????????????????? | | ???#""" #??????????????????????????? | | ####"R ?????????????????????????? | | #""" #??????????????????????????? | | #""" !! #??????????????????????????? | | #### !! #??????????????????????????? | | #??# ##### ??????????????????????????? | | #### #????? ???????????????????????????? | | # #??????????????????????????????????? | | # !!! #??????????????????????????????????? | | # !!! #??????????????????????????????????? | | %% # !!! #??#######????##???????????????????? | | #"## #### ## #??## #???????????????????? | | % ! ## ;;;# ###;;;##??????????????????? | | % ##### ; u #??? ??????????????? | | =*! ### #?? ; +??""??????????????? | | *%########+#####;; k #? """ "???????????? | | !# # """ ""??????????? | | [!+ %[ == %! # ???????????? | | ! # " %=% ; "???????????? | | # "" "" =[= u ; "???????????? | | +## """""" ; """?????????????? | | ## """""" # # "R??????????????? | | ## # #??????????????????? | | ## # @ #??????????????????? | | ################# s #??????????????????? | | #???????????????#### #??????????????????? | | "#????????????????? *s ?????????????????? | | "#??????????????? ==%[ ???????????????? | | "#??????????????# ?????????????? | | #??????????????# *""" """ "???????????? | | ##??????????????# Axh """ """ ????????????? | | ????????????????# e p E """ ""??????????????? | | ????????????????# xh ? ???????????????? | | ????????????????#ii h """?????????????????? | | ????????????????# """?????????????????? | | ????????????????# "???????????????????? | | ?????????????????? ???????????????????? | | ?????????????????????""" """ "???????????????????? | | ???????????????????????" ????????????????????????? | | ?????????????????????????????????????????????????? | | ?????????????????????????????????????????????????? | | ?????????????????????????????????????????????????? | | ?????????????????????????????????????????????????? | | ?????????????????????????????????????????????????? | | ?????????????????????????????????????????????????? | | ?????????????????????????????????????????????????? | | ?????????????????????????????????????????????????? | | ?????????????????????????????????????????????????? | +----------------------------------------------------+ Best States ------------- Heat Dissipation 105 Energy Generation 43 Energy Capacity 590 Matter Stores 300 Matter Capacity 300 Sight Range 16 Robot Scan Range 16 Terrain Scan Range 16 Terrain Scan Density 10 Jamming Range 14 Armor Coverage 900 Weapon Cycling 20 Evasion (%) 43 Targeting Accuracy 14 Recoil Reduction 5 Offensive Hacking 10 Defensive Hacking 14 Item Schematics ----------------- None Robot Schematics ------------------ None Fabricated ------------ Com. HERF Cannon | x1 | -5/Factory | Preloaded Repaired ---------- Nothing Alien Tech Used ----------------- None Achievements -------------- None Challenges ------------ None Game ------ Seed ArmageddonRelayBlasthammer Manual? 0 Play Time 01:39:39 Cumulative 183.8 hours Start 2025.08.26 @ 01:02:07 End 2025.08.26 @ 18:43:29 Sessions 2 Manual Loads 0 Difficulty Rogue Special Mode None Game No. 86 Rogue 86 Adventurer 0 Explorer 0 Win Type - Total 17 Types 5/2/4/1/1/0/0/1/1/2 Lore% 72 Gallery% 71 Achievement% 67 Wizard Run 0 Options --------- Layout 0 ASCII 0 Keyboard 1 Movement Vi Keybinds 0 Fullscreen 2 Font 18/SmallcapsGlow Map View 76x50 Zoom Use 0% Tactical HUD 1 Map Filters NONE Filters NONE Steam 1 RUN: 4475cfa5-4b2f-444d-b229-644a6c22d196